bitfinex-derivatives/quotes_SOLF0:USTF0_20250509
["timestamp","ask_amount","ask_price","bid_price","bid_amount"]
[1746788423604,132.25696086,173.69,173.48,41.96]
[1746788423902,41.92,173.68,173.57,5.7621]
[1746788424105,41.92,173.68,173.48,41.96]
[1746788424708,41.92,173.68,173.39,116.30935425]
[1746788424709,18.00076465,173.65,173.4,41.86]
[1746788425007,456.28,173.64,173.4,41.86]
[1746788425206,41.9,173.63,173.36,41.9]
[1746788425405,1.8707,173.63,173.43,41.9]
[1746788425707,41.9,173.62,173.44,62.0]
[1746788425909,132.25696086,173.68,173.49,18.00076465]
[1746788426104,132.25696086,173.68,173.54,18.00076465]
[1746788426309,165.32120108,173.75,173.59,18.00076465]
[1746788426509,165.32120108,173.75,173.6,41.92]
[1746788427198,165.32120108,173.75,173.64,18.00076465]
[1746788427597,159.37740108,173.75,173.64,18.00076465]
[1746788427801,498.14,173.85,173.65,41.84]
[1746788427998,18.00076465,173.84,173.61,456.2]
[1746788428202,18.00076465,173.84,173.6,41.8]
[1746788428404,1.8745,173.83,173.6,41.8]
[1746788428605,5.7572,173.73,173.63,5.7601]
[1746788428907,41.72,173.73,173.6,41.8]
[1746788429307,41.72,173.73,173.57,62.0]
[1746788429506,456.2,173.74,173.56,43.4245]
[1746788429804,5.7564,173.75,173.65,5.7595]
[1746788430001,1.8386,173.78,173.63,41.62]
[1746788430202,5.7565,173.74,173.65,5.7595]
[1746788430410,1.8386,173.78,173.63,41.62]
[1746788431400,456.2,173.82,173.63,41.62]
[1746788431604,41.4,173.81,173.63,41.62]
[1746788431812,41.4,173.81,173.56,1.7845]
[1746788432018,41.4,173.81,173.56,43.1645]
[1746788432206,18.0394246,173.79,173.56,43.1645]
[1746788432404,18.0394246,173.68,173.46,1.0]
[1746788432705,501.3533,173.67,173.46,1.0]
[1746788432902,503.2321,173.67,173.46,1.0]
[1746788433309,18.0394246,173.63,173.46,1.0]
[1746788433812,41.32,173.62,173.46,1.0]
[1746788434202,459.9133,173.67,173.49,18.0394246]
[1746788434410,18.0394246,174.04,173.59,18.0394246]
[1746788434714,3.8548,173.92,173.7,18.00754227]
[1746788434910,3.8548,173.92,173.71,43.3737]
[1746788435109,21.87698742,173.92,173.71,1.8937]
[1746788435315,456.22,173.91,173.62,18.02218742]
[1746788435507,41.46,173.9,173.63,43.3537]
[1746788435707,41.46,173.9,173.64,18.03001081]
[1746788435902,41.46,173.9,173.63,43.3537]
[1746788435903,5.753,173.85,173.73,5.7567]
[1746788436107,41.42,173.84,173.63,43.3537]
[1746788436516,59.45001081,173.84,173.6,1.8313]
[1746788437010,5.7539,173.82,173.6,1.8313]
[1746788437217,41.4,173.84,173.61,62.0]
[1746788437511,41.34,173.86,173.77,5.7554]
[1746788437712,41.34,173.86,173.71,41.34]
[1746788438109,5.7533,173.84,173.64,474.15001081]
[1746788438311,41.34,173.86,173.69,41.28]
[1746788438512,41.34,173.86,173.71,5.7572]
[1746788438704,41.34,173.86,173.69,41.28]
[1746788438905,18.03001081,173.84,173.61,1.8964]
[1746788439109,5.7546,173.8,173.62,41.22]
[1746788439309,41.22,173.79,173.63,2.50958794]
[1746788439707,456.04,173.81,173.64,2.50958794]
[1746788439915,456.04,173.81,173.65,2.50958794]
[1746788440111,456.04,173.81,173.66,2.50958794]
[1746788440316,456.04,173.81,173.67,2.50958794]
[1746788440515,456.04,173.81,173.68,43.56958794]
[1746788440711,456.04,173.81,173.69,2.51532798]
[1746788440912,456.04,173.81,173.68,41.06]
[1746788441311,456.04,173.81,173.69,2.51564075]
[1746788441512,456.04,173.81,173.7,2.51564075]
[1746788441818,456.04,173.81,173.61,19.92641081]
[1746788441819,456.04,173.81,173.61,1.8964]
[1746788442021,44.5264,173.8,173.62,2.52069399]
[1746788442221,44.5264,173.8,173.63,2.52069399]
[1746788442413,44.5264,173.8,173.64,2.52069399]
[1746788442613,44.5264,173.8,173.65,2.52069399]
[1746788442819,44.5264,173.8,173.6,1.8313]
[1746788443013,3.6464,173.8,173.61,2.52666682]
[1746788443213,40.76,173.79,173.62,2.52666682]
[1746788443418,40.76,173.79,173.63,2.52666682]
[1746788443619,3.6464,173.8,173.64,2.52666682]
[1746788443820,40.68,173.79,173.65,2.52666682]
[1746788444120,44.3064,173.8,173.66,2.52666682]
[1746788444317,44.3064,173.8,173.67,2.53176297]
[1746788444619,44.3064,173.8,173.68,2.53176297]
[1746788444820,44.3064,173.8,173.69,2.53176297]
[1746788445117,44.3064,173.8,173.7,2.53176297]
[1746788445320,455.98,173.89,173.71,2.53176297]
[1746788445519,44.2114,173.88,173.72,2.53176297]
[1746788445817,44.2114,173.88,173.73,2.53176297]
[1746788446020,44.2114,173.88,173.74,2.53176297]
[1746788446214,44.2114,173.88,173.75,2.52971558]
[1746788446516,133.36591548,173.9,173.81,18.03001081]
[1746788446820,44.2922,174.04,173.86,18.03001081]
[1746788447012,44.2922,174.04,173.87,2.52767874]
[1746788447207,5.7485,173.99,173.92,5.7504]
[1746788447419,44.2922,174.04,173.87,40.54]
[1746788447612,3.7322,174.04,173.88,2.52819921]
[1746788447813,198.3854413,174.07,173.92,18.03001081]
[1746788448017,198.3854413,174.07,173.93,51.60450351]
[1746788448323,198.3854413,174.07,173.94,5.15821322]
[1746788448526,198.3854413,174.07,173.95,10.94450351]
[1746788448818,198.3854413,174.07,173.96,2.52819921]
[1746788449015,198.3854413,174.07,173.97,2.52819921]
[1746788449218,5.7476,174.02,173.98,2.52819921]
[1746788449420,40.54,174.06,173.99,2.52819921]
[1746788449614,40.54,174.06,173.88,42.3002]
[1746788449814,3.8002,174.05,173.89,2.47638072]
[1746788450015,18.03001081,174.04,173.77,18.03001081]
[1746788450217,455.82,174.03,173.82,18.71231236]
[1746788450418,455.82,174.03,173.83,2.48009087]
[1746788450617,40.44,174.02,173.84,2.48009087]
[1746788450824,40.4,174.01,173.85,2.48009087]
[1746788451114,5.5845,174.05,173.83,43.04740411]
[1746788451115,3.8002,174.05,173.86,3.63044172]
[1746788451422,3.8002,174.05,173.87,2.48009087]
[1746788451621,3.8002,174.05,173.88,2.48009087]
[1746788451823,3.8002,174.05,173.89,42.86009087]
[1746788451824,40.38,174.04,173.89,42.86009087]
[1746788452116,35.93314682,174.42,173.92,17.96464204]
[1746788452324,5.6738,174.26,173.97,17.96464204]
[1746788452515,5.6738,174.26,173.98,505.11732958]
[1746788452712,40.44,174.25,173.99,67.08332958]
[1746788452922,40.44,174.25,174.02,17.96464204]
[1746788453122,40.44,174.25,174.03,5.0754092]
[1746788453319,40.44,174.25,174.04,42.84009087]
[1746788453521,40.44,174.25,174.05,2.48009087]
[1746788453722,40.44,174.25,174.06,2.48009087]
[1746788453921,40.44,174.25,174.07,2.48009087]
[1746788454119,40.44,174.25,174.08,2.48009087]
[1746788454424,40.44,174.25,174.08,5.7453]
[1746788454615,40.44,174.25,174.06,2.45494714]
[1746788454816,40.26,174.24,174.05,1.8833]
[1746788455017,40.26,174.24,174.05,4.33507585]
[1746788455216,40.26,174.24,174.05,1.8833]
[1746788455422,17.96464204,174.23,174.0,40.2]
[1746788456122,40.14,174.22,174.0,40.2]
[1746788456420,17.96464204,174.18,173.94,40.14]
[1746788456620,17.96464204,174.13,173.94,40.14]
[1746788456822,43.7537,174.12,173.94,40.14]
[1746788457017,45.6174,174.12,173.94,40.14]
[1746788457622,5.7479,174.0,173.94,40.14]
[1746788457821,40.04,174.05,173.94,40.14]
[1746788458029,455.38,174.09,173.94,40.14]
[1746788458619,5.7447,174.1,174.01,5.7476]
[1746788458827,3.6137,174.12,174.01,39.98]
[1746788459025,3.6137,174.12,173.97,39.96]
[1746788459223,3.6137,174.12,173.92,17.96464204]
[1746788459418,3.6137,174.12,173.9,455.48]
[1746788459724,3.6137,174.12,173.87,21.74154204]
[1746788459927,3.6137,174.12,173.89,39.9]
[1746788460226,17.96464204,174.09,173.81,39.86]
[1746788460427,39.86,174.08,173.81,39.86]
[1746788460723,17.96464204,174.03,173.81,39.86]
[1746788460929,39.84,174.02,173.81,39.86]
[1746788461428,41.7114,174.01,173.81,39.86]
[1746788461633,5.75,173.94,173.85,5.7529]
[1746788461823,1.8914,174.01,173.81,39.86]
[1746788462019,41.5654,174.0,173.81,39.86]
[1746788462526,1.8582,173.99,173.76,41.4994]
[1746788462727,39.8,173.99,173.77,20.43012666]
[1746788462929,39.8,173.99,173.77,17.96464204]
[1746788463128,5.7506,173.92,173.78,2.46511821]
[1746788463317,39.74,173.93,173.77,17.96464204]
[1746788463718,39.74,173.93,173.75,495.1]
[1746788463929,39.74,173.93,173.72,1.8405]
[1746788464119,5.7525,173.87,173.78,5.7552]
[1746788464327,455.42,173.96,173.73,57.66464204]
[1746788464628,39.7,173.95,173.74,2.4678144]
[1746788464930,39.7,173.95,173.73,1.15121165]
[1746788465126,17.96464204,173.93,173.73,1.15121165]
[1746788465733,5.7534,173.84,173.75,5.7559]
[1746788465935,39.66,173.84,173.73,1.15121165]
[1746788466136,3.8581,173.83,173.73,1.15121165]
[1746788466336,3.8581,173.83,173.68,39.62]
[1746788466936,3.8581,173.83,173.68,57.58464204]
[1746788467538,455.42,173.85,173.68,57.58464204]
[1746788467832,5.7526,173.86,173.78,5.7549]
[1746788468038,3.8581,173.93,173.76,39.48]
[1746788468229,3.8581,173.93,173.78,17.96464204]
[1746788468429,5.7486,173.98,173.86,5.7524]
[1746788468735,39.46,173.97,173.83,39.46]
[1746788468930,5.7502,173.94,173.79,1.9727]
[1746788469132,39.46,173.97,173.8,2.46971842]
[1746788469336,39.46,173.97,173.79,1.9727]
[1746788469538,5.7482,174.0,173.8,64.47182855]
[1746788469736,3.6859,174.01,173.81,2.47182855]
[1746788469932,3.6859,174.01,173.82,2.47182855]
[1746788470132,39.34,174.0,173.83,20.43647059]
[1746788470337,39.34,174.0,173.84,2.47182855]
[1746788470538,39.34,174.0,173.85,2.4736817]
[1746788470834,3.6859,174.01,173.86,2.4736817]
[1746788471037,3.6859,174.01,173.83,57.28464204]
[1746788471238,3.6859,174.01,173.84,2.47261436]
[1746788471542,3.6859,174.01,173.85,2.47261436]
[1746788471739,3.6859,174.01,173.86,2.47043054]
[1746788471939,9.4338,174.01,173.92,5.7503]
[1746788472241,9.4338,174.01,173.84,2.47032821]
[1746788472436,3.6859,174.01,173.85,2.47032821]
[1746788472631,455.52,174.1,173.88,17.96464204]
[1746788472841,1.9644,174.07,173.89,45.26772821]
[1746788473139,1.9644,174.07,173.9,64.47032821]
[1746788473339,1.9644,174.07,173.91,2.47032821]
[1746788473538,5.7479,174.01,173.9,5.751]
[1746788473740,39.16,174.0,173.85,2.47310341]
[1746788473939,39.16,174.03,173.86,2.47310341]
[1746788474249,39.16,174.03,173.87,2.47310341]
[1746788474444,39.16,174.03,173.88,2.47310341]
[1746788474642,39.16,174.03,173.89,2.47310341]
[1746788474846,39.16,174.03,173.9,41.63310341]
[1746788475048,39.16,174.03,173.91,2.47310341]
[1746788475344,39.16,174.03,173.9,39.16]
[1746788475546,39.16,174.03,173.91,2.47316]
[1746788475746,39.16,174.03,173.9,39.16]
[1746788476248,39.16,174.03,173.8,40.9548]
[1746788476547,19.83794204,174.02,173.8,40.9548]
[1746788476736,20.8491244,174.02,173.81,2.4781103]
[1746788476939,20.8491244,174.02,173.82,2.4781103]
[1746788477144,1.01118236,174.01,173.8,39.14]
[1746788477448,39.14,174.0,173.83,1.15054938]
[1746788477650,456.47118236,173.99,173.83,1.15054938]
[1746788477848,458.34988236,173.99,173.83,1.15054938]
[1746788478048,17.96464204,173.97,173.83,1.15054938]
[1746788478248,458.34988236,173.99,173.78,6.18805461]
[1746788478249,17.96464204,173.92,173.78,6.18805461]
[1746788478548,40.15118236,173.91,173.77,13.29856697]
[1746788478749,1.01118236,173.91,173.7,6.21361417]
[1746788478945,40.15118236,173.9,173.71,3.6418344]
[1746788479247,1.01118236,173.89,173.71,1.15134419]
[1746788479452,5.7539,173.82,173.73,5.7566]
[1746788479648,39.14,173.81,173.7,6.21361417]
[1746788479848,39.14,173.81,173.71,2.49522319]
[1746788480047,39.14,173.81,173.7,6.21361417]
[1746788481241,5.7549,173.79,173.71,5.7572]
[1746788481441,5.7549,173.79,173.7,6.21361417]
[1746788481442,39.14,173.81,173.7,6.21361417]
[1746788481850,455.52,173.88,173.71,2.49296454]
[1746788482052,39.14,173.87,173.69,1.0]
[1746788482251,40.15211678,173.87,173.7,2.49418485]
[1746788482449,40.15211678,173.87,173.69,1.0]
[1746788482648,40.15211678,173.87,173.7,2.49533508]
[1746788482854,5.7539,173.82,173.71,2.49533508]
[1746788483053,39.14,173.87,173.69,1.0]
[1746788483353,5.755,173.79,173.71,5.7574]
[1746788483552,39.16,173.79,173.69,1.0]
[1746788483752,39.16,173.79,173.7,2.49517717]
[1746788483953,39.16,173.79,173.71,2.49517717]
[1746788484154,39.16,173.79,173.69,1.0]
[1746788484350,39.16,173.79,173.7,2.49530816]
[1746788484551,44.9149,173.79,173.72,5.7569]
[1746788484752,39.16,173.79,173.69,1.0]
[1746788484951,44.9151,173.79,173.72,5.7569]
[1746788485156,39.16,173.79,173.69,1.0]
[1746788485656,39.16,173.79,173.71,5.7575]
[1746788485855,39.16,173.79,173.69,1.0]
[1746788486052,5.7579,173.7,173.69,1.0]
[1746788486256,5.7579,173.7,173.51,531.02194256]
[1746788486257,39.16,173.7,173.55,1.8136]
[1746788486451,39.16,173.7,173.56,2.49733477]
[1746788486651,5.7592,173.66,173.58,5.7618]
[1746788486850,39.16,173.7,173.56,2.49792407]
[1746788487055,5.7593,173.66,173.58,5.7616]
[1746788487256,39.16,173.7,173.55,1.8136]
[1746788487755,5.7589,173.67,173.59,5.7613]
[1746788487953,39.16,173.7,173.53,3.831]
[1746788488149,5.76,173.64,173.56,5.7622]
[1746788488460,39.16,173.64,173.53,3.831]
[1746788488652,5.7603,173.63,173.57,5.7621]
[1746788488852,39.16,173.64,173.57,5.7621]
[1746788489054,39.16,173.64,173.54,2.4907759]
[1746788489359,39.16,173.64,173.53,3.831]
[1746788489948,39.16,173.64,173.47,41.65026092]
[1746788490159,39.16,173.64,173.48,2.49026092]
[1746788490362,39.16,173.64,173.49,2.49026092]
[1746788490659,39.16,173.64,173.5,2.49026092]
[1746788490856,39.16,173.64,173.6,5.7611]
[1746788491358,39.16,173.64,173.61,5.7608]
[1746788491549,5.7593,173.66,173.54,39.16]
[1746788491753,39.18,173.67,173.5,62.0]
[1746788491953,1.01317787,173.66,173.47,5.6525]
[1746788492357,5.7614,173.6,173.47,5.6525]
[1746788492547,39.16,173.61,173.47,5.6525]
[1746788493450,5.7596,173.65,173.48,17.96464204]
[1746788493765,39.16,173.69,173.49,2.47950327]
[1746788493957,456.02,173.71,173.5,2.47950327]
[1746788494158,39.18,173.7,173.51,39.18]
[1746788494360,39.18,173.7,173.52,2.47949025]
[1746788494563,5.7592,173.67,173.61,5.7606]
[1746788494858,39.18,173.7,173.52,2.47949025]
[1746788495058,456.02,173.71,173.53,62.0]
[1746788495260,456.02,173.71,173.54,2.47861735]
[1746788495459,39.18,173.7,173.54,2.47861735]
[1746788495762,5.7568,173.74,173.58,17.96464204]
[1746788495954,44.9368,173.74,173.59,44.7069]
[1746788496157,44.9368,173.74,173.69,5.7581]
[1746788496558,39.18,173.74,173.59,44.7069]
[1746788496762,456.14,173.79,173.59,44.7069]
[1746788497064,39.16,173.78,173.63,17.96464204]
[1746788497361,39.16,173.78,173.64,2.47394235]
[1746788497663,39.16,173.78,173.65,39.16]
[1746788498363,456.14,173.79,173.66,2.47481359]
[1746788498561,456.14,173.79,173.67,62.0]
[1746788498756,39.16,173.86,173.68,20.44446509]
[1746788498965,39.16,173.86,173.69,4.30972305]
[1746788499167,39.16,173.86,173.7,2.47982305]
[1746788499465,39.16,173.86,173.79,5.7547]
[1746788499658,495.3,173.87,173.72,2.47982305]
[1746788499852,495.3,173.87,173.71,41.0569]
[1746788499853,495.3,173.87,173.73,2.47982305]
[1746788500057,495.3,173.87,173.72,2.47982305]
[1746788500254,495.3,173.87,173.71,1.8969]
[1746788500458,495.3,173.87,173.74,5.7565]
[1746788500659,495.3,173.87,173.71,1.8969]
[1746788500862,1.01201546,173.86,173.71,1.8969]
[1746788501262,1.01201546,173.86,173.68,39.14]
[1746788501459,1.01201546,173.86,173.69,5.758]
[1746788501764,1.01201546,173.86,173.66,2.48959712]
[1746788501953,1.01201546,173.86,173.64,3.7913]
[1746788502158,5.7533,173.84,173.65,2.49126447]
[1746788502359,39.14,173.83,173.66,2.49126447]
[1746788502563,39.14,173.83,173.73,5.7566]
[1746788502762,1.01229137,173.82,173.68,2.49126447]
[1746788503066,1.01229137,173.82,173.78,5.755]
[1746788503361,456.14,173.87,173.64,3.7913]
[1746788503362,39.14,173.81,173.68,39.14]
[1746788503562,39.14,173.81,173.69,4.314098]
[1746788503763,39.14,173.81,173.7,2.489998]
[1746788503958,39.14,173.81,173.69,1.8241]
[1746788503959,39.14,173.81,173.71,2.489998]
[1746788504162,39.14,173.81,173.69,1.8241]
[1746788504360,5.7548,173.8,173.7,2.49239988]
[1746788504559,39.14,173.81,173.71,2.49239988]
[1746788504757,39.14,173.81,173.64,3.7913]
[1746788504965,456.14,173.87,173.65,5.09758807]
[1746788505160,39.14,173.86,173.66,5.09758807]
[1746788505360,1.01219779,173.85,173.67,2.49868475]
[1746788505564,1.01219779,173.85,173.65,5.85664645]
[1746788505756,1.01219779,173.85,173.66,2.50059177]
[1746788506064,1.01219779,173.85,173.67,2.50059177]
[1746788506266,1.01219779,173.85,173.64,1.8969]
[1746788506461,5.7568,173.74,173.59,2.61167149]
[1746788506661,39.12,173.73,173.6,5.11447941]
[1746788506963,39.12,173.73,173.61,5.11753595]
[1746788507166,39.12,173.73,173.62,2.50280792]
[1746788507359,39.12,173.73,173.67,5.7589]
[1746788507556,456.02,173.75,173.59,5.86799009]
[1746788507865,39.12,173.74,173.6,10.9866532]
[1746788508065,39.12,173.74,173.61,5.11866311]
[1746788508266,5.7569,173.73,173.62,2.50413803]
[1746788508466,5.7569,173.73,173.63,2.50413803]
[1746788508766,5.7569,173.73,173.64,2.50413803]
[1746788508961,39.12,173.74,173.6,2.61228592]
[1746788509164,39.12,173.74,173.61,5.11519008]
[1746788509364,39.12,173.74,173.62,2.50335584]
[1746788509665,5.7575,173.72,173.63,5.7599]
[1746788510166,39.12,173.74,173.64,2.50491428]
[1746788510464,39.12,173.74,173.59,2.61582948]
[1746788510665,39.12,173.74,173.6,5.12062419]
[1746788510965,39.12,173.74,173.61,2.50479471]
[1746788511166,39.1,173.73,173.62,2.50479471]
[1746788511465,5.7575,173.72,173.65,5.7593]
[1746788511665,39.1,173.73,173.65,5.7593]
[1746788511958,39.1,173.73,173.61,64.6148903]
[1746788512260,39.1,173.73,173.62,2.50275299]
[1746788512467,39.1,173.73,173.57,1.8449]
[1746788512670,39.1,173.73,173.58,2.50408646]
[1746788512856,39.1,173.73,173.51,39.1]
[1746788513064,5.7601,173.64,173.57,2.50611249]
[1746788513369,39.1,173.64,173.58,2.50599792]
[1746788513571,39.1,173.64,173.58,5.7618]
[1746788513771,39.1,173.64,173.56,3.7877]
[1746788514170,39.1,173.64,173.56,1.932]
[1746788514474,39.1,173.64,173.5,4.4871733]
[1746788514664,39.08,173.64,173.51,2.49797021]
[1746788514865,39.08,173.7,173.52,2.49797021]
[1746788515061,39.08,173.7,173.53,2.49797021]
[1746788515265,44.8383,173.69,173.54,82.46261225]
[1746788515466,44.8383,173.69,173.55,2.49797021]
[1746788515666,44.8383,173.69,173.56,41.57797021]
[1746788515972,5.7586,173.68,173.57,2.49797021]
[1746788516168,5.7586,173.68,173.62,5.7603]
[1746788516668,5.7586,173.68,173.56,39.08]
[1746788516869,5.7586,173.68,173.57,2.49866554]
[1746788517070,5.7586,173.68,173.58,2.49866554]
[1746788517269,5.7591,173.67,173.61,5.7606]
[1746788517574,39.08,173.69,173.56,39.08]
[1746788517760,39.08,173.69,173.57,2.50005936]
[1746788517961,39.08,173.73,173.58,2.50005936]
[1746788518166,39.08,173.73,173.59,2.50005936]
[1746788518367,39.08,173.73,173.6,2.50005936]
[1746788518672,39.08,173.73,173.58,5.86276752]
[1746788518865,5.7584,173.69,173.61,5.7606]
[1746788519066,39.08,173.73,173.53,39.06]
[1746788519067,1.01286934,173.72,173.55,5.86276752]
[1746788519267,39.08,173.73,173.56,5.09962412]
[1746788519569,39.08,173.73,173.57,5.09962412]
[1746788519769,39.08,173.73,173.58,2.50293957]
[1746788520065,39.08,173.73,173.59,2.50616403]
[1746788520264,39.06,173.72,173.6,2.50616403]
[1746788520472,39.06,173.72,173.61,22.57314805]
[1746788520766,456.16,173.83,173.65,17.46340918]
[1746788520974,456.16,173.83,173.76,5.7556]
[1746788520975,5.7538,173.83,173.76,5.7556]
[1746788521266,39.06,173.86,173.73,17.46340918]
[1746788521469,39.06,173.86,173.74,2.51022964]
[1746788521771,18.47561476,173.85,173.63,21.06240918]
[1746788521977,17.46340918,173.81,173.64,5.11568202]
[1746788522174,17.46340918,173.81,173.63,21.06240918]
[1746788522175,39.04,173.8,173.67,17.46340918]
[1746788522365,39.04,173.8,173.68,5.11660992]
[1746788522565,456.16,173.79,173.68,5.88961778]
[1746788522766,1.01250655,173.78,173.68,5.88961778]
[1746788523171,1.01250655,173.78,173.63,1.8027]
[1746788523374,17.46340918,173.76,173.64,2.51501245]
[1746788523572,17.46340918,173.65,173.43,191.57785011]
[1746788523769,17.46340918,173.65,173.53,18.76957337]
[1746788523770,39.04,173.64,173.53,18.76957337]
[1746788523973,17.46340918,173.61,173.53,18.76957337]
[1746788524677,1.0135934,173.6,173.53,18.76957337]
[1746788525067,5.7623,173.57,173.53,18.76957337]
[1746788525273,39.02,173.56,173.53,18.76957337]
[1746788526673,39.02,173.56,173.46,2.9032]
[1746788526873,39.02,173.58,173.47,2.51301615]
[1746788527073,39.02,173.61,173.48,5.09417771]
[1746788527274,39.02,173.61,173.49,2.51301615]
[1746788527471,5.7615,173.6,173.5,8.27721615]
[1746788527671,39.02,173.61,173.51,2.51301615]
[1746788527866,39.02,173.61,173.46,2.9032]
[1746788528077,57.09615716,173.61,173.47,2.51245267]
[1746788528275,1.01377402,173.6,173.46,1.0]
[1746788528474,57.09615716,173.61,173.46,1.0]
[1746788528774,1.01379924,173.6,173.46,1.0]
[1746788529082,39.02,173.59,173.46,1.0]
[1746788529474,1.01379924,173.58,173.46,1.0]
[1746788529684,39.02,173.59,173.46,1.0]
[1746788530075,1.01384184,173.58,173.46,1.0]
[1746788530372,18.07615716,173.51,173.32,18.76957337]
[1746788530569,496.39384184,173.5,173.33,2.50990769]
[1746788530774,496.39384184,173.5,173.34,2.50990769]
[1746788530975,496.39384184,173.5,173.35,2.50990769]
[1746788531176,1.01384184,173.49,173.36,2.50990769]
[1746788531378,1.01384184,173.49,173.33,5.87636111]
[1746788531672,5.7656,173.47,173.39,5.7678]
[1746788531873,5.7656,173.47,173.32,18.76957337]
[1746788532074,39.02,173.48,173.33,2.50215009]
[1746788532277,39.02,173.48,173.34,2.50215009]
[1746788532486,39.0,173.47,173.35,2.50215009]
[1746788532682,456.36,173.5,173.36,2.50215009]
[1746788532875,39.0,173.49,173.37,2.50215009]
[1746788533079,39.0,173.49,173.33,2.50281151]
[1746788533275,1.01440544,173.48,173.27,1.8946]
[1746788533487,18.07615716,173.46,173.28,2.49973021]
[1746788533784,1.01440544,173.45,173.29,2.49973021]
[1746788533976,1.01440544,173.45,173.27,7.72348629]
[1746788534179,1.01440544,173.45,173.28,2.5025585]
[1746788534381,5.7695,173.35,173.27,7.6667]
[1746788534586,39.0,173.34,173.27,1.8946]
[1746788535284,39.0,173.34,173.25,1.9484]
[1746788535482,456.52,173.39,173.25,1.9484]
[1746788535682,39.0,173.38,173.25,4.44501006]
[1746788535988,39.0,173.37,173.26,2.49604808]
[1746788536188,39.0,173.37,173.25,1.9484]
[1746788536695,5.7708,173.32,173.25,10.21378683]
[1746788536880,39.0,173.37,173.25,1.9484]
[1746788537385,5.7708,173.31,173.25,7.7211]
[1746788537789,5.7706,173.32,173.26,5.7725]
[1746788538182,39.0,173.34,173.25,1.9484]
[1746788538887,39.0,173.34,173.27,5.7721]
[1746788539085,456.52,173.39,173.25,1.9484]
[1746788539587,39.0,173.38,173.25,1.9484]
[1746788539882,456.52,173.39,173.25,40.9484]
[1746788540088,456.52,173.39,173.26,2.48451068]
[1746788540288,456.52,173.39,173.25,40.9484]
[1746788540585,39.0,173.4,173.26,2.48161165]
[1746788540789,39.0,173.4,173.25,40.9484]
[1746788540790,39.0,173.43,173.27,2.48161165]
[1746788540986,456.8,173.47,173.25,497.7484]
[1746788540987,5.7664,173.45,173.4,5.7678]
[1746788541490,456.84,173.55,173.34,2.4782532]
[1746788541686,1.01403668,173.54,173.34,6.3275532]
[1746788541990,5.7656,173.47,173.42,5.7671]
[1746788542187,38.98,173.53,173.35,2.4782532]
[1746788542583,38.98,173.53,173.36,1.9193]
[1746788542784,5.7659,173.46,173.41,5.7672]
[1746788542987,38.98,173.47,173.36,1.9193]
[1746788543785,38.98,173.47,173.44,5.7662]
[1746788543986,456.84,173.55,173.37,62.0]
[1746788544187,5.7641,173.52,173.46,5.7655]
[1746788544389,38.96,173.51,173.39,38.96]
[1746788544592,38.96,173.51,173.37,38.96]
[1746788545490,38.96,173.51,173.38,2.48507671]
[1746788545692,38.96,173.51,173.37,38.96]
[1746788545891,5.766,173.46,173.41,5.7672]
[1746788546087,38.96,173.51,173.37,38.96]
[1746788546489,456.84,173.55,173.37,38.96]
[1746788546688,38.94,173.58,173.38,14.02245953]
[1746788546884,38.94,173.57,173.39,2.48545953]
[1746788547089,38.94,173.57,173.4,2.48545953]
[1746788547291,38.94,173.58,173.42,11.534]
[1746788547491,38.94,173.61,173.43,2.48545953]
[1746788547794,44.7009,173.61,173.46,17.47865113]